bitfinex/quotes_SOLUSD_20250522
["timestamp","ask_amount","ask_price","bid_price","bid_amount"]
[1747955729369,13.97663107,178.87,178.81,19.14964886]
[1747955729965,28.14929089,178.87,178.81,19.14964886]
[1747955730661,33.73994331,178.87,178.81,19.14964886]
[1747955732483,14.17265982,178.86,178.81,19.14964886]
[1747955732880,5.5912776,178.85,178.81,19.14964886]
[1747955734792,19.56728349,178.87,178.81,19.14964886]
[1747955739178,5.59065242,178.87,178.82,0.14216157]
[1747955743461,19.56728349,178.87,178.82,0.14216157]
[1747955743881,19.56728349,178.87,178.81,19.14964886]
[1747955751276,28.63570435,178.87,178.81,19.14964886]
[1747955751996,28.63570435,178.87,178.79,18.64964886]
[1747955754097,19.56728349,178.87,178.8,0.14216157]
[1747955754596,19.56728349,178.87,178.79,18.64964886]
[1747955757297,19.56728349,178.87,178.81,18.64964886]
[1747955758297,19.56728349,178.87,178.79,18.64964886]
[1747955762405,19.56728349,178.87,178.8,0.14216157]
[1747955762715,19.56728349,178.87,178.8,2.54216157]
[1747955774818,13.97663107,178.87,178.8,2.54216157]
[1747955776310,5.59002739,178.89,178.81,18.64964886]
[1747955776508,19.56509586,178.89,178.81,18.64964886]
[1747955777520,13.97506847,178.89,178.81,44.64964886]
[1747955778231,23.04348933,178.89,178.81,44.64964886]
[1747955778531,9.06842086,178.87,178.79,44.64964886]
[1747955779392,19.5683775,178.86,178.79,44.64964886]
[1747955780328,19.5683775,178.86,178.81,18.64964886]
[1747955781333,19.5683775,178.86,178.8,2.4]
[1747955781621,19.5683775,178.86,178.8,18.64964886]
[1747955783503,5.590965,178.86,178.8,18.64964886]
[1747955785326,5.590965,178.86,178.81,2.4]
[1747955785511,5.590965,178.86,178.8,18.64964886]
[1747955786420,19.56618962,178.88,178.8,18.64964886]
[1747955786909,19.56618962,178.88,178.8,24.24245682]
[1747955787625,5.59033989,178.88,178.81,0.14216157]
[1747955787827,149.97405234,178.91,178.85,0.14216157]
[1747955787828,5.58940249,178.91,178.85,0.14216157]
[1747955788517,5.58854812,178.94,178.88,44.933972]
[1747955788824,50.59081,178.95,178.88,44.933972]
[1747955788825,56.1790604,178.95,178.88,44.933972]
[1747955790308,56.1790604,178.95,178.89,2.4]
[1747955790515,79.21786404,178.95,178.89,2.4]
[1747955791420,79.21786404,178.95,178.88,18.64964886]
[1747955792623,19.56290872,178.91,178.85,18.64964886]
[1747955796131,28.63132958,178.91,178.85,18.64964886]
[1747955800234,28.63132958,178.91,178.85,19.14964886]
[1747955800536,9.06842086,178.89,178.85,0.5]
[1747955800715,9.06842086,178.89,178.84,26.0]
[1747955800716,9.06842086,178.89,178.84,18.64964886]
[1747955801346,9.06842086,178.89,178.82,18.79181043]
[1747955801528,19.56618962,178.88,178.82,18.79181043]
[1747955805349,19.56618962,178.88,178.83,0.5]
[1747955805852,13.97584973,178.88,178.83,0.5]
[1747955808334,9.06842086,178.87,178.83,0.5]
[1747955808525,9.06842086,178.87,178.82,18.64964886]
[1747955809037,23.04427059,178.88,178.82,18.64964886]
[1747955810345,23.04427059,178.88,178.82,19.14964886]
[1747955810346,5.59033989,178.88,178.82,19.14964886]
[1747955810839,5.59033989,178.88,178.83,0.14216157]
[1747955811343,5.59033989,178.88,178.83,0.28432314]
[1747955812436,19.563526,178.91,178.84,18.64964886]
[1747955813346,28.63194686,178.91,178.84,18.64964886]
[1747955813547,19.563526,178.91,178.84,18.64964886]
[1747955814644,19.563526,178.91,178.83,18.933972]
[1747955815240,19.563526,178.91,178.83,24.52583049]
[1747955815443,19.563526,178.91,178.83,18.933972]
[1747955816151,19.563526,178.91,178.83,24.52582943]
[1747955816653,19.563526,178.91,178.83,18.933972]
[1747955817154,19.563526,178.91,178.83,24.52585484]
[1747955818947,19.563526,178.91,178.83,18.933972]
[1747955820456,19.563526,178.91,178.83,24.52584582]
[1747955821359,19.563526,178.91,178.83,18.933972]
[1747955823062,19.563526,178.91,178.84,26.0]
[1747955828559,23.04254437,178.91,178.84,26.0]
[1747955829563,28.63194686,178.91,178.84,26.0]
[1747955831750,19.563526,178.91,178.84,26.0]
[1747955833049,5.58940249,178.91,178.85,18.79181043]
[1747955834562,28.63132958,178.91,178.85,18.64964886]
[1747955835549,9.06842086,178.9,178.85,18.64964886]
[1747955835748,9.06842086,178.89,178.85,18.64964886]
[1747955836747,14.65876075,178.88,178.83,18.64964886]
[1747955836946,9.06842086,178.87,178.82,26.0]
[1747955837675,19.56618962,178.88,178.83,0.14216157]
[1747955838478,9.06842086,178.87,178.82,18.64964886]
[1747955838869,23.04427059,178.88,178.82,18.64964886]
[1747955840576,28.63461048,178.88,178.82,18.64964886]
[1747955842075,28.63461048,178.88,178.82,21.04964886]
[1747955847854,19.56618962,178.88,178.82,21.04964886]
[1747955849361,5.59033989,178.88,178.83,0.28432314]
[1747955850686,13.9740104,178.91,178.83,0.28432314]
[1747955850877,23.04243126,178.91,178.83,0.28432314]
[1747955851077,13.9740104,178.91,178.83,0.28432314]
[1747955851283,23.04243126,178.91,178.83,0.28432314]
[1747955851977,13.9740104,178.91,178.85,26.0]
[1747955852372,5.58909009,178.92,178.86,18.64964886]
[1747955855200,9.06842086,178.91,178.85,26.0]
[1747955855492,9.06842086,178.9,178.84,18.64964886]
[1747955855681,9.06842086,178.89,178.84,18.64964886]
[1747955856199,9.06842086,178.9,178.84,18.64964886]
[1747955856388,9.06842086,178.91,178.84,18.64964886]
[1747955857467,5.58971492,178.9,178.85,0.14216157]
[1747955857667,19.56400223,178.9,178.84,18.64964886]
[1747955857960,28.63242309,178.9,178.84,18.64964886]
[1747955861502,5.58971492,178.9,178.85,0.14216157]
[1747955861678,5.58909009,178.92,178.85,0.14216157]
[1747955861997,9.06842086,178.91,178.85,0.14216157]
[1747955863527,5.58971492,178.9,178.85,0.14216157]
[1747955863801,5.58971492,178.9,178.86,18.64964886]
[1747955865800,5.58940249,178.91,178.86,18.64964886]
[1747955867197,23.0411461,178.92,178.86,18.64964886]
[1747955868098,28.63023619,178.92,178.86,18.64964886]
[1747955870710,9.06842086,178.91,178.86,18.64964886]
[1747955871307,23.0411461,178.92,178.86,18.64964886]
[1747955872909,28.63023619,178.92,178.86,18.64964886]
[1747955873906,14.65751095,178.92,178.86,18.64964886]
[1747955874113,5.58909009,178.92,178.87,0.14216157]
[1747955874490,14.65751095,178.92,178.87,0.14216157]
[1747955883112,5.58909009,178.92,178.87,0.14216157]
[1747955884019,9.06842086,178.9,178.85,0.5]
[1747955884189,9.06842086,178.9,178.84,26.0]
[1747955885018,28.63023619,178.92,178.85,18.79181043]
[1747955885895,28.63023619,178.92,178.86,2.4]
[1747955887004,9.06842086,178.91,178.87,18.64964886]
[1747955887703,9.06842086,178.91,178.85,18.79181043]
[1747955888513,5.58971492,178.9,178.85,18.79181043]
[1747955891200,5.58909009,178.92,178.85,18.79181043]
[1747955893400,9.06842086,178.91,178.85,18.79181043]
[1747955893596,9.06842086,178.91,178.85,18.64964886]
[1747955895116,5.58971492,178.9,178.85,18.64964886]
[1747955895826,28.63242309,178.9,178.85,18.64964886]
[1747955896008,28.63242309,178.9,178.86,2.4]
[1747955896210,19.56400223,178.9,178.86,2.4]
[1747955897019,5.58971492,178.9,178.86,2.4]
[1747955902827,19.5631346,178.91,178.86,2.4]
[1747955905231,5.58940249,178.91,178.87,18.64964886]
[1747955906329,5.58909009,178.92,178.87,18.64964886]
[1747955906531,14.65751095,178.92,178.87,18.64964886]
[1747955909619,14.65751095,178.92,178.85,18.79181043]
[1747955909819,5.58909009,178.92,178.85,18.79181043]
[1747955910225,5.58909009,178.92,178.88,0.14216157]
[1747955910811,5.5884654,178.94,178.88,26.14216157]
[1747955911125,5.5884654,178.94,178.9,0.14216157]
[1747955913824,5.5884654,178.94,178.92,18.64964886]
[1747955914344,5.5884654,178.94,178.9,0.14216157]
[1747955922553,56.1790744,178.95,178.9,0.14216157]
[1747955923051,56.1790744,178.95,178.93,18.64964886]
[1747955923357,50.59081,178.95,178.94,0.28432314]
[1747955923534,50.59081,178.95,178.94,18.933972]
[1747955923715,5.58534405,179.04,178.98,18.64964886]
[1747955924527,19.54870419,179.04,178.98,18.64964886]
[1747955925429,13.96336014,179.04,178.98,18.64964886]
[1747955927163,19.54870419,179.04,178.98,18.64964886]
[1747955928049,28.61712505,179.04,178.98,18.64964886]
[1747955928249,9.06842086,179.03,178.97,26.0]
[1747955928555,9.06842086,179.02,178.94,44.64964886]
[1747955928744,9.06842086,179.02,178.93,18.79181043]
[1747955928949,47.47542447,179.04,178.93,18.79181043]
[1747955929149,9.06842086,179.03,178.94,26.5]
[1747955932255,19.55088816,179.02,178.94,26.5]
[1747955934150,19.55088816,179.02,178.95,0.14216157]
[1747955934341,13.96492012,179.02,178.95,18.79181043]
[1747955939656,5.58565603,179.03,178.95,18.79181043]
[1747955940462,19.54870419,179.04,178.95,18.79181043]
[1747955943250,19.54870419,179.04,178.96,0.14216157]
[1747955943652,5.58534405,179.04,178.99,18.79181043]
[1747955944747,5.5847202,179.06,178.99,18.79181043]
[1747955944944,19.54652071,179.06,178.99,18.79181043]
[1747955947366,9.06842086,179.05,178.98,26.0]
[1747955948246,9.06842086,179.04,178.98,26.0]
[1747955948939,53.55202173,179.06,178.98,26.0]
[1747955949170,9.06842086,179.05,178.98,26.0]
[1747955949567,19.54870419,179.04,178.98,26.0]
[1747955950652,19.54870419,179.04,178.99,18.64964886]
[1747955951777,13.96336014,179.04,178.99,18.64964886]
[1747955952284,5.58503211,179.05,178.99,18.64964886]
[1747955952460,5.58503211,179.05,179.02,26.0]
[1747955952664,5.58503211,179.05,179.03,18.64964886]
[1747955953663,19.5432464,179.09,179.03,18.64964886]
[1747955955682,13.95946172,179.09,179.03,18.64964886]
[1747955956975,5.58347292,179.1,179.03,18.64964886]
[1747955957289,19.54215522,179.1,179.03,18.64964886]
[1747955958777,19.54215522,179.1,179.04,0.5]
[1747955958981,14.13636679,179.09,179.04,0.5]
[1747955959277,14.13636679,179.09,179.02,44.64964886]
[1747955959278,14.13636679,179.09,179.03,18.64964886]
[1747955959868,33.67852201,179.1,179.03,18.64964886]
[1747955965702,14.13636679,179.05,178.97,1.6462]
[1747955965863,14.13636679,179.03,178.94,0.14216157]
[1747955966059,14.13636679,179.02,178.93,50.77375668]
[1747955966368,14.13636679,179.0,178.94,26.0]
[1747955966555,14.13636679,179.01,178.95,18.64964886]
[1747955966759,14.13636679,179.0,178.95,18.64964886]
[1747955966989,14.13636679,179.01,178.95,18.64964886]
[1747955967368,19.55307261,179.0,178.95,18.64964886]
[1747955971102,14.13636679,178.99,178.92,26.0]
[1747955971265,14.13636679,178.98,178.93,18.64964886]
[1747955971662,14.13636679,178.98,178.93,21.04964886]
[1747955971905,14.13636679,178.99,178.93,21.04964886]
[1747955972280,5.58721644,178.98,178.93,21.04964886]
[1747955972922,19.55525756,178.98,178.93,21.04964886]
[1747955976529,19.55525756,178.98,178.93,2.4]
[1747955976726,33.69162435,178.98,178.92,26.0]
[1747955981610,14.13636679,178.97,178.9,18.64964886]
[1747955983537,19.55744299,178.96,178.9,18.64964886]
[1747955986123,19.55744299,178.96,178.88,1.6625]
[1747955986303,14.13636679,178.92,178.84,1.6661]
[1747955986501,14.13636679,178.9,178.81,6.18606157]
[1747955986703,14.13636679,178.88,178.8,10.4366687]
[1747955986913,14.13636679,178.88,178.8,8.7705687]
[1747955986914,14.13636679,178.84,178.8,8.7705687]
[1747955987412,14.13636679,178.83,178.8,8.7705687]
[1747955987916,5.59221563,178.82,178.8,8.7705687]
[1747955988530,5.59221563,178.82,178.78,8.01485668]
[1747955988713,14.13636679,178.8,178.78,8.01485668]
[1747955988920,19.57275471,178.82,178.7,34.96]
[1747955988921,14.13636679,178.79,178.7,34.96]
[1747955989119,14.13636679,178.76,178.68,6.4405]
[1747955989307,14.13636679,178.76,178.7,26.0]
[1747955989506,14.13636679,178.76,178.7,18.64964886]
[1747955989925,14.13636679,178.76,178.7,44.64964886]
[1747955990307,5.59440559,178.75,178.7,44.64964886]
[1747955990630,5.59440559,178.75,178.7,18.64964886]
[1747955991402,33.5,178.77,178.72,26.0]
[1747955991608,47.63636679,178.77,178.72,26.0]
[1747955992012,14.13636679,178.76,178.71,26.0]
[1747955992212,47.63636679,178.77,178.71,26.0]
[1747955992417,5.59409263,178.76,178.71,26.0]
[1747955993107,19.57932422,178.76,178.71,26.0]
[1747955995536,19.57932422,178.76,178.68,0.14216157]
[1747955995833,19.57932422,178.76,178.71,18.64964886]
[1747955996333,5.59409263,178.76,178.71,18.64964886]
[1747955996514,5.59377971,178.77,178.71,18.64964886]
[1747955996715,19.7301465,178.77,178.71,18.64964886]
[1747955997724,33.71459579,178.77,178.7,18.79181043]
[1747955998654,33.71459579,178.77,178.71,18.64964886]
[1747955999139,14.13636679,178.76,178.71,18.64964886]
[1747955999725,14.13636679,178.76,178.68,0.14216157]
[1747956000035,14.13636679,178.76,178.69,18.79181043]
[1747956000739,19.578229,178.77,178.69,18.79181043]
[1747956001514,14.13636679,178.75,178.69,18.64964886]
[1747956002029,14.13636679,178.76,178.67,18.79181043]
[1747956002336,14.13636679,178.75,178.67,18.64964886]
[1747956002637,19.58151504,178.74,178.67,18.64964886]
[1747956003212,5.59471858,178.74,178.68,0.14216157]
[1747956003743,5.59471858,178.74,178.68,0.28432314]
[1747956004335,5.59409263,178.76,178.68,0.28432314]
[1747956004630,5.59409263,178.76,178.71,18.64964886]
[1747956005716,5.59377971,178.77,178.71,18.64964886]
[1747956007334,19.7301465,178.77,178.71,18.64964886]
[1747956008680,5.59377971,178.77,178.71,18.64964886]
[1747956009859,5.59315397,178.79,178.72,0.28432314]
[1747956010061,5.59315397,178.79,178.75,18.64964886]
[1747956010352,33.71166057,178.8,178.74,26.0]
[1747956010533,33.71166057,178.8,178.7,88.23804538]
[1747956010534,14.13636679,178.79,178.71,44.79181043]
[1747956011233,33.71166057,178.8,178.71,44.79181043]
[1747956011542,33.71166057,178.8,178.71,44.64964886]
[1747956012252,33.71166057,178.8,178.72,0.14216157]
[1747956014370,5.59284116,178.8,178.72,5.73743004]
[1747956014648,5.59284116,178.8,178.73,18.64964886]
[1747956014842,5.59284116,178.8,178.74,0.14216157]
[1747956015757,5.59252838,178.81,178.74,0.14216157]
[1747956015941,19.72889517,178.81,178.74,0.14216157]
[1747956016537,5.59252838,178.81,178.75,18.64964886]
[1747956019665,14.13636679,178.79,178.73,18.64964886]
[1747956019845,14.13636679,178.76,178.67,18.79181043]
[1747956020155,14.13636679,178.72,178.64,6.58266157]
[1747956020351,14.13636679,178.72,178.64,32.4405]
[1747956020523,14.13636679,178.72,178.65,18.64964886]
[1747956021372,19.73202455,178.71,178.65,18.64964886]
[1747956021552,14.13636679,178.7,178.65,18.64964886]
[1747956021755,14.13636679,178.69,178.65,18.64964886]
[1747956022068,19.58480218,178.71,178.65,18.64964886]
[1747956022069,33.72116897,178.71,178.65,18.64964886]
[1747956022266,19.58480218,178.71,178.65,18.64964886]
[1747956022439,33.72116897,178.71,178.65,18.64964886]
[1747956022860,19.58480218,178.71,178.65,18.64964886]
[1747956023456,33.72116897,178.71,178.64,26.0]
[1747956023658,14.13636679,178.7,178.64,26.0]
[1747956024944,5.59628406,178.69,178.64,26.0]
[1747956025459,5.59628406,178.69,178.63,18.64964886]
[1747956027966,5.59628406,178.69,178.62,18.79181043]
[1747956031984,19.58589815,178.7,178.62,18.79181043]
[1747956033286,19.58589815,178.7,178.62,18.64964886]
[1747956033459,33.72226494,178.7,178.62,18.64964886]
[1747956034062,14.13636679,178.67,178.61,26.0]
[1747956034357,14.13636679,178.67,178.59,18.64964886]
[1747956034585,14.13636679,178.69,178.59,18.64964886]
[1747956034773,14.13636679,178.67,178.59,18.64964886]
[1747956035285,14.13636679,178.67,178.59,44.64964886]
[1747956035583,19.59028321,178.66,178.59,44.64964886]
[1747956036195,5.59722377,178.66,178.59,44.64964886]
[1747956037678,19.58965968,178.67,178.59,44.64964886]
[1747956038487,5.5969105,178.67,178.6,0.14216157]
[1747956038786,5.5969105,178.67,178.62,26.0]
[1747956039504,5.5969105,178.67,178.63,18.64964886]
[1747956039802,5.59628406,178.69,178.63,18.64964886]
[1747956040019,5.59628406,178.69,178.62,18.64964886]
[1747956040807,19.58699422,178.69,178.62,18.64964886]
[1747956041098,19.58699422,178.69,178.63,26.0]
[1747956041479,5.59628406,178.69,178.64,18.64964886]
[1747956041780,19.58480218,178.71,178.64,18.64964886]
[1747956041997,33.72116897,178.71,178.64,18.64964886]
[1747956046123,19.58480218,178.71,178.64,18.64964886]
[1747956046325,33.72116897,178.71,178.64,18.64964886]
[1747956048528,19.58480218,178.71,178.64,18.64964886]
[1747956052211,5.59565776,178.71,178.68,18.64964886]
[1747956052418,19.58194015,178.74,178.68,18.64964886]
[1747956056729,5.59471858,178.74,178.68,18.64964886]
[1747956059416,33.71788183,178.74,178.68,18.64964886]
[1747956059620,33.71788183,178.74,178.67,26.0]
[1747956060432,19.58370635,178.72,178.67,26.0]
[1747956060904,14.13636679,178.7,178.63,1.61]
[1747956061109,14.13636679,178.69,178.6,35.24216157]
[1747956061330,14.13636679,178.69,178.64,26.0]
[1747956061631,14.13636679,178.69,178.61,18.64964886]
[1747956062134,14.13636679,178.69,178.6,18.64964886]
[1747956062135,14.13636679,178.67,178.6,18.64964886]
[1747956062514,19.59028321,178.66,178.6,18.64964886]
[1747956063213,19.59028321,178.66,178.59,27.5152]
[1747956063619,19.59028321,178.66,178.59,26.0]
[1747956064223,33.72665,178.66,178.59,26.0]
[1747956064906,19.59028321,178.66,178.59,26.0]
[1747956066858,19.59028321,178.66,178.6,18.64964886]
[1747956070748,13.99305944,178.66,178.6,18.64964886]
[1747956073760,13.99305944,178.66,178.59,0.14216157]
[1747956074574,5.5969105,178.67,178.59,0.14216157]
[1747956075075,14.13636679,178.66,178.56,18.64964886]
[1747956075758,33.72555355,178.67,178.57,0.14216157]
[1747956076672,33.72555355,178.67,178.57,0.28432314]
[1747956076849,19.58918676,178.67,178.57,0.28432314]
[1747956077173,19.58918676,178.67,178.59,0.14216157]
[1747956077366,19.58918676,178.67,178.59,18.79181043]
[1747956078462,19.58918676,178.67,178.59,24.39121395]
[1747956079180,19.58918676,178.67,178.59,18.79181043]
[1747956079877,19.58918676,178.67,178.59,24.39121104]
[1747956080270,5.59659726,178.68,178.59,24.39121104]
[1747956081390,19.58699422,178.69,178.59,24.39121104]
[1747956081574,33.72336101,178.69,178.59,18.79181043]
[1747956081973,19.58699422,178.69,178.62,26.0]
[1747956083486,19.58699422,178.69,178.63,26.0]
[1747956087400,33.72336101,178.69,178.61,18.64964886]
[1747956089078,19.58699422,178.69,178.61,18.64964886]
[1747956090795,5.59628406,178.69,178.62,0.14216157]
[1747956090995,5.59565776,178.71,178.65,18.64964886]
[1747956091202,19.58392929,178.72,178.65,18.64964886]
[1747956093072,19.58589815,178.7,178.65,26.0]
[1747956094998,13.98992725,178.7,178.65,26.0]
[1747956096867,19.58589815,178.7,178.63,18.64964886]
[1747956097071,19.58589815,178.7,178.62,0.14216157]
[1747956097288,19.58589815,178.7,178.63,18.64964886]
[1747956097896,19.58589815,178.7,178.61,26.0]
[1747956098197,19.58589815,178.7,178.62,18.64964886]
[1747956098770,33.72226494,178.7,178.62,18.64964886]
[1747956098995,33.72226494,178.7,178.61,26.0]
[1747956099191,14.13636679,178.69,178.63,26.0]
[1747956099584,33.72226494,178.7,178.63,26.0]
[1747956100110,61.70211944,178.7,178.63,26.0]
[1747956101898,19.58589815,178.7,178.63,26.0]
[1747956103295,19.58589815,178.7,178.6,0.28432314]
[1747956104313,19.58589815,178.7,178.6,5.88334222]
[1747956104625,19.58589815,178.7,178.6,0.28432314]
[1747956105317,33.72226494,178.7,178.6,0.28432314]
[1747956106931,33.72226494,178.7,178.6,0.14216157]
[1747956108222,61.70211944,178.7,178.6,0.14216157]
[1747956110507,19.58589815,178.7,178.6,5.88332067]
[1747956110930,19.58589815,178.7,178.62,0.14216157]
[1747956111654,19.58589815,178.7,178.63,0.14216157]
[1747956111863,19.58589815,178.7,178.63,18.79181043]
[1747956112355,19.58589815,178.7,178.63,0.14216157]
[1747956117662,5.5959709,178.7,178.64,0.14216157]
[1747956120054,5.5959709,178.7,178.63,5.88235988]
[1747956120259,5.5959709,178.7,178.63,0.28432314]
[1747956120477,19.5851463,178.71,178.63,0.28432314]
[1747956122698,13.98948854,178.71,178.63,0.28432314]
[1747956127389,13.98948854,178.71,178.63,0.14216157]
[1747956127560,13.98948854,178.71,178.62,18.64964886]
[1747956127975,13.98948854,178.71,178.63,0.14216157]
[1747956128169,19.5851463,178.71,178.63,0.14216157]
[1747956130491,13.98948854,178.71,178.63,0.14216157]
[1747956133288,13.98948854,178.71,178.64,18.64964886]
[1747956133492,5.59534467,178.72,178.65,0.28432314]
[1747956135297,13.98732875,178.74,178.65,0.28432314]
[1747956136394,13.98732875,178.74,178.67,0.14216157]
[1747956138601,5.59440559,178.75,178.66,0.14216157]
[1747956138777,5.59440559,178.75,178.66,5.88154691]
[1747956138977,19.58041957,178.75,178.66,18.933972]
[1747956140096,19.58041957,178.75,178.66,5.88153221]
[1747956141203,19.58041957,178.75,178.66,18.933972]
[1747956142411,13.98601398,178.75,178.66,18.933972]
[1747956143492,13.98601398,178.75,178.68,0.14216157]
[1747956147106,13.98601398,178.75,178.7,26.0]
[1747956147314,5.59409263,178.76,178.71,18.64964886]
[1747956147499,5.59409263,178.76,178.72,0.14216157]
[1747956148388,13.98404707,178.78,178.72,0.14216157]
[1747956148794,5.59284116,178.8,178.72,0.14216157]
[1747956148795,5.59284116,178.8,178.75,18.64964886]
[1747956150523,5.59221563,178.82,178.75,18.64964886]
[1747956152529,19.57275471,178.82,178.75,18.64964886]
[1747956153724,5.59221563,178.82,178.76,0.14216157]
[1747956154315,19.56989824,178.85,178.76,0.14216157]
[1747956154918,19.56989824,178.85,178.76,0.28432314]
[1747956155306,19.56989824,178.85,178.79,18.64964886]
[1747956155534,5.5912776,178.85,178.79,18.64964886]
[1747956155728,5.5912776,178.85,178.8,0.14216157]
[1747956156524,19.56645494,178.88,178.8,0.14216157]
[1747956156723,28.65236371,178.88,178.79,18.64964886]
[1747956160445,19.56645494,178.88,178.79,18.64964886]
[1747956160649,28.65236371,178.88,178.79,18.64964886]
[1747956161243,56.60406317,178.88,178.79,18.64964886]
[1747956161446,9.08590877,178.86,178.79,18.64964886]
[1747956162752,9.08590877,178.86,178.78,26.0]
[1747956163046,9.08590877,178.84,178.77,18.64964886]
[1747956163251,9.08590877,178.85,178.77,18.64964886]
[1747956163421,28.65428627,178.86,178.77,18.64964886]
[1747956164962,19.5683775,178.86,178.78,0.14216157]
[1747956169263,19.5683775,178.86,178.79,2.4]
[1747956175470,19.5683775,178.86,178.78,0.14216157]
[1747956177167,19.5683775,178.86,178.79,2.4]
[1747956177352,19.5683775,178.86,178.78,0.14216157]
[1747956182185,19.5683775,178.86,178.79,2.4]
[1747956182384,5.590965,178.86,178.81,0.14216157]
[1747956182963,19.5657332,178.89,178.81,0.14216157]
[1747956183255,19.5657332,178.89,178.82,18.64964886]
[1747956184686,56.60177892,178.89,178.78,119.1444]
[1747956184865,9.08590877,178.88,178.79,26.0]
[1747956185068,9.08590877,178.88,178.78,84.1444]
[1747956185069,9.08590877,178.86,178.78,82.5]
[1747956185272,10.64860877,178.86,178.78,82.5]
[1747956185660,15.73875267,178.86,178.78,82.5]
[1747956185860,1.5627,178.86,178.79,18.64964886]
[1747956186083,1.5627,178.86,178.78,82.5]
[1747956186560,14.17605267,178.85,178.78,82.5]
[1747956186766,14.17605267,178.85,178.78,18.64964886]
[1747956187075,19.57056586,178.84,178.77,26.0]
[1747956189793,19.57056586,178.84,178.77,26.0]
[1747956190317,19.57056586,178.84,178.75,44.933972]
[1747956191685,19.57056586,178.84,178.75,50.52835354]
[1747956192385,19.57056586,178.84,178.76,2.4]
[1747956192594,19.57056586,178.84,178.77,0.14216157]
[1747956192887,5.5912776,178.85,178.77,24.52763218]
[1747956193084,5.5912776,178.85,178.77,18.933972]
[1747956193488,5.5912776,178.85,178.79,18.64964886]
[1747956194604,19.56761771,178.87,178.79,18.64964886]
[1747956195188,33.74367038,178.87,178.79,18.64964886]
[1747956195395,14.17605267,178.86,178.77,44.79181043]
[1747956196118,14.17605267,178.86,178.77,0.14216157]
[1747956196815,19.56947161,178.85,178.77,0.14216157]
[1747956197418,19.56947161,178.85,178.78,0.5]
[1747956197801,14.17605267,178.84,178.78,0.5]
[1747956198111,14.17605267,178.83,178.76,18.64964886]
[1747956198611,19.57275471,178.82,178.76,18.64964886]
[1747956200392,13.98053908,178.82,178.76,18.64964886]
[1747956201915,5.59190292,178.83,178.76,0.14216157]
[1747956202612,5.59190292,178.83,178.78,18.64964886]
[1747956203003,19.57166023,178.83,178.76,0.14216157]
[1747956206524,5.59190292,178.83,178.78,0.14216157]
[1747956207490,13.97789708,178.86,178.8,18.64964886]
[1747956207899,13.97789708,178.86,178.78,0.14216157]
[1747956210233,13.97789708,178.86,178.78,0.28432314]
[1747956211739,13.97789708,178.86,178.78,0.14216157]
[1747956212411,13.97789708,178.86,178.79,0.5]
[1747956212712,13.97789708,178.86,178.8,18.64964886]
[1747956221240,23.05111653,178.86,178.79,0.5]
[1747956221542,23.05111653,178.86,178.78,0.14216157]
[1747956221918,23.05111653,178.86,178.77,0.14216157]
[1747956223128,28.64208153,178.86,178.78,2.4]
[1747956223333,28.64208153,178.86,178.79,18.64964886]
[1747956224025,19.56886208,178.86,178.79,18.64964886]
[1747956224342,19.56886208,178.86,178.78,0.14216157]
[1747956225437,13.97789708,178.86,178.78,0.14216157]
[1747956226024,23.05111653,178.86,178.78,0.14216157]
[1747956226219,13.97789708,178.86,178.78,0.14216157]
[1747956226528,13.97789708,178.86,178.8,0.14216157]
[1747956227544,5.59033989,178.88,178.8,18.79181043]
[1747956227726,5.59033989,178.88,178.81,0.14216157]
[1747956227930,19.56618962,178.88,178.81,0.14216157]
[1747956229445,13.97584973,178.88,178.81,0.14216157]
[1747956233331,13.97584973,178.88,178.83,18.64964886]
[1747956234225,13.97584973,178.88,178.81,18.79181043]
[1747956234423,13.97584973,178.88,178.82,0.14216157]
[1747956239559,5.59002739,178.89,178.82,0.14216157]
[1747956239846,5.59002739,178.89,178.81,24.52639326]
[1747956240024,19.56509586,178.89,178.81,18.933972]
[1747956240945,13.97506847,178.89,178.81,18.933972]
[1747956243528,1.5052,178.94,178.85,0.28432314]
[1747956243729,5.58877773,178.93,178.88,26.0]
[1747956244125,5.58752863,178.97,178.89,18.64964886]
[1747956244961,19.55635022,178.97,178.89,18.64964886]
[1747956246747,19.55635022,178.97,178.9,0.28432314]
[1747956248247,19.55635022,178.97,178.92,18.64964886]
[1747956248561,19.55635022,178.97,178.9,0.28432314]
[1747956250662,61.66243026,178.97,178.89,18.64964886]
[1747956250867,14.16843686,178.94,178.85,0.14216157]
[1747956251076,14.16843686,178.93,178.84,18.64964886]
[1747956251246,14.16843686,178.93,178.86,26.0]
[1747956252855,19.56181533,178.92,178.86,26.0]
[1747956253268,19.56181533,178.92,178.87,2.4]
[1747956254167,19.56181533,178.92,178.86,26.0]
[1747956256495,14.16843686,178.9,178.81,6.1072]
[1747956256658,14.16843686,178.88,178.8,18.79181043]
[1747956256858,14.16843686,178.88,178.83,26.0]